[Event "XI Continental-ch America 2016"]
[Site "San Salvador"]
[Date "2016.06.03"]
[Round "9"]
[White "Cordova, Emilio"]
[Black "Lenderman, Aleksandr"]
[Result "1-0"]
[ECO "A37"]
[WhiteElo "2602"]
[BlackElo "2614"]
[PlyCount "85"]
[EventDate "2016.??.??"]
[EventCountry "ESA"]
[TimeControl "40/5400+30:1800+30"]
[WhiteClock "0:14:33"]
[BlackClock "0:04:22"]

1. Nf3 {[%emt 0:00:00]} c5 {[%emt 0:00:00]} 2. c4 {[%emt 0:00:07]} Nc6 {
[%emt 0:00:00]} 3. Nc3 {[%emt 0:00:29]} g6 {[%emt 0:00:00]} 4. g3 {[%emt 0:00:
41]} Bg7 {[%emt 0:00:03]} 5. Bg2 {[%emt 0:00:03]} e6 {[%emt 0:00:07]} 6. a3 {
[%emt 0:01:18]} Nge7 {[%emt 0:02:23]} 7. b4 {[%emt 0:00:35]} d6 {[%emt 0:03:55]
} 8. O-O {[%emt 0:00:28]} O-O {[%emt 0:00:16]} 9. bxc5 {[%emt 0:05:03]} dxc5 {
[%emt 0:00:30]} 10. Bb2 {[%emt 0:00:14]} b6 {[%emt 0:01:50]} 11. d3 {[%emt 0:
06:40]} Bb7 {[%emt 0:00:42]} 12. e3 {[%emt 0:01:53]} Nf5 {[%emt 0:03:16]} 13.
Qd2 {[%emt 0:04:12]} Qe7 {[%emt 0:03:31]} 14. Rad1 {[%emt 0:00:44]} Rad8 {
[%emt 0:01:19]} 15. Qc1 {[%emt 0:12:22]} Na5 {[%emt 0:16:51]} 16. Ne2 {[%emt 0:
14:37]} Bc6 {[%emt 0:04:27]} 17. Bxg7 {[%emt 0:00:23]} Nxg7 {[%emt 0:01:17]}
18. Qb2 {[%emt 0:08:59]} Qb7 {[%emt 0:03:05]} 19. e4 {[%emt 0:00:18]} Qe7 {
[%emt 0:14:56]} 20. h4 {[%emt 0:01:00]} Ba8 {[%emt 0:03:49]} 21. Rfe1 {[%emt 0:
09:23]} Nc6 {[%emt 0:01:26]} 22. Qc1 {[%emt 0:00:03]} Rd7 {[%emt 0:02:42]} 23.
Nf4 {[%emt 0:03:46]} Rfd8 {[%emt 0:05:54]} 24. h5 {[%emt 0:01:27]} Nd4 {
[%emt 0:03:29]} 25. Ne5 {[%emt 0:01:12]} Rc7 {[%emt 0:00:30]} 26. hxg6 {
[%emt 0:00:19]} hxg6 {[%emt 0:00:12]} 27. Nh3 {[%emt 0:00:27]} Nh5 {[%emt 0:02:
14]} 28. g4 {[%emt 0:01:30]} Qf6 {[%emt 0:05:00]} 29. f4 {[%emt 0:01:59]} Ng7 {
[%emt 0:00:05]} 30. Ng5 {[%emt 0:08:48]} Ne8 {[%emt 0:00:17]} 31. Kf2 {[%emt 0:
01:02]} Qg7 {[%emt 0:14:37]} 32. Rh1 {[%emt 0:00:04]} Nf6 {[%emt 0:00:05]} 33.
Rh4 {[%emt 0:00:23]} Nc6 {[%emt 0:04:56]} 34. Nxc6 {[%emt 0:02:13]} Bxc6 {
[%emt 0:00:16]} 35. e5 {[%emt 0:00:03]} Bxg2 {[%emt 0:00:37]} 36. exf6 {
[%emt 0:00:43]} Qxf6 {[%emt 0:00:02]} 37. Kxg2 {[%emt 0:00:07]} Rd4 {[%emt 0:
01:11]} 38. Rdh1 {[%emt 0:00:39]} Qxf4 {[%emt 0:00:29]} 39. Rh8+ {[%emt 0:00:
09]} Kg7 {[%emt 0:00:02]} 40. Nxe6+ {[%emt 0:00:09]} fxe6 {[%emt 0:00:06]} 41.
R1h7+ {[%emt 0:30:07]} Kf6 {[%emt 0:30:05]} 42. Qxf4+ {[%emt 0:02:15]} Rxf4 {
[%emt 0:00:06]} 43. Rxc7 {[%emt 0:00:03]} 1-0

[Event "XI Continental-ch America 2016"]
[Site "San Salvador"]
[Date "2016.06.03"]
[Round "9"]
[White "Gonzalez, Bernal"]
[Black "Erenburg, Sergey"]
[Result "0-1"]
[ECO "D20"]
[WhiteElo "2476"]
[BlackElo "2587"]
[PlyCount "74"]
[EventDate "2016.??.??"]
[EventCountry "ESA"]
[TimeControl "40/5400+30:1800+30"]
[WhiteClock "0:00:33"]
[BlackClock "0:01:00"]

1. d4 {[%emt 0:00:00]} d5 {[%emt 0:00:00]} 2. c4 {[%emt 0:00:00]} dxc4 {
[%emt 0:00:00]} 3. e3 {[%emt 0:00:30]} Nf6 {[%emt 0:00:00]} 4. Bxc4 {[%emt 0:
00:11]} a6 {[%emt 0:00:13]} 5. Nf3 {[%emt 0:00:17]} e6 {[%emt 0:01:06]} 6. O-O
{[%emt 0:00:08]} b5 {[%emt 0:00:34]} 7. Bd3 {[%emt 0:00:04]} Bb7 {[%emt 0:00:
15]} 8. a4 {[%emt 0:01:30]} b4 {[%emt 0:00:42]} 9. Qe2 {[%emt 0:00:23]} c5 {
[%emt 0:00:49]} 10. dxc5 {[%emt 0:01:11]} Nbd7 {[%emt 0:01:01]} 11. Rd1 {
[%emt 0:03:46]} Qc7 {[%emt 0:02:12]} 12. e4 {[%emt 0:16:17]} Nxc5 {[%emt 0:12:
25]} 13. e5 {[%emt 0:00:05]} Nd5 {[%emt 0:01:05]} 14. Bc4 {[%emt 0:02:40]} Be7
{[%emt 0:12:27]} 15. Be3 {[%emt 0:02:04]} Nxe3 {[%emt 0:04:13]} 16. Qxe3 {
[%emt 0:04:01]} Nxa4 {[%emt 0:02:48]} 17. Nbd2 {[%emt 0:02:25]} Nc5 {[%emt 0:
19:45]} 18. Nb3 {[%emt 0:00:20]} O-O {[%emt 0:01:17]} 19. Na5 {[%emt 0:04:30]}
Bxf3 {[%emt 0:04:14]} 20. Qxf3 {[%emt 0:14:18]} Rfc8 {[%emt 0:12:39]} 21. Qe3 {
[%emt 0:02:24]} Nd7 {[%emt 0:02:00]} 22. Qe2 {[%emt 0:11:33]} Rd8 {[%emt 0:14:
03]} 23. Rdc1 {[%emt 0:08:59]} Bg5 {[%emt 0:02:46]} 24. Re1 {[%emt 0:06:01]}
Bf4 {[%emt 0:01:16]} 25. Bd3 {[%emt 0:08:29]} Nxe5 {[%emt 0:00:56]} 26. Be4 {
[%emt 0:02:05]} Rac8 {[%emt 0:00:03]} 27. g3 {[%emt 0:00:41]} Rd2 {[%emt 0:02:
23]} 28. Qxa6 {[%emt 0:01:13]} Bh6 {[%emt 0:01:01]} 29. Qb5 {[%emt 0:02:38]}
Rxb2 {[%emt 0:00:13]} 30. Bb7 {[%emt 0:01:04]} Qc2 {[%emt 0:00:58]} 31. Qf1 {
[%emt 0:01:59]} Nd3 {[%emt 0:00:49]} 32. Bxc8 {[%emt 0:01:32]} Nxe1 {[%emt 0:
00:05]} 33. Bb7 {[%emt 0:01:01]} Be3 {[%emt 0:01:31]} 34. Kh1 {[%emt 0:02:03]}
Bxf2 {[%emt 0:00:11]} 35. Nb3 {[%emt 0:00:32]} g6 {[%emt 0:00:39]} 36. Na5 {
[%emt 0:00:35]} Bd4 {[%emt 0:00:35]} 37. Qh3 {[%emt 0:00:28]} Qf2 {[%emt 0:00:
16]} 0-1

[Event "XI Continental-ch America 2016"]
[Site "San Salvador"]
[Date "2016.06.03"]
[Round "9"]
[White "Flores, Diego"]
[Black "Morovic Fernandez, Ivan"]
[Result "1/2-1/2"]
[ECO "E92"]
[WhiteElo "2592"]
[BlackElo "2573"]
[PlyCount "92"]
[EventDate "2016.??.??"]
[EventCountry "ESA"]
[TimeControl "40/5400+30:1800+30"]
[WhiteClock "0:27:43"]
[BlackClock "0:08:10"]

1. d4 {[%emt 0:00:54]} Nf6 2. c4 {[%emt 0:00:26]} g6 {[%emt 0:00:00]} 3. Nc3 {
[%emt 0:00:21]} Bg7 4. e4 {[%emt 0:02:09]} d6 {[%emt 0:01:04]} 5. Nf3 {[%emt 0:
02:04]} O-O {[%emt 0:00:19]} 6. Be2 {[%emt 0:00:39]} e5 {[%emt 0:00:15]} 7. d5
{[%emt 0:01:46]} a5 {[%emt 0:00:04]} 8. Bg5 {[%emt 0:00:37]} h6 {[%emt 0:00:22]
} 9. Be3 {[%emt 0:01:05]} Ng4 {[%emt 0:01:43]} 10. Bd2 {[%emt 0:00:18]} f5 {
[%emt 0:00:08]} 11. h3 {[%emt 0:00:55]} Nf6 {[%emt 0:02:25]} 12. exf5 {[%emt 0:
00:41]} gxf5 {[%emt 0:01:07]} 13. Qc1 {[%emt 0:00:16]} f4 {[%emt 0:02:15]} 14.
g3 {[%emt 0:00:37]} e4 {[%emt 0:00:32]} 15. Nh4 {[%emt 0:00:27]} e3 {[%emt 0:
05:38]} 16. fxe3 {[%emt 0:00:17]} fxg3 {[%emt 0:00:11]} 17. Ng6 {[%emt 0:00:33]
} Re8 {[%emt 0:11:18]} 18. Rg1 {[%emt 0:04:25]} Na6 {[%emt 0:09:58]} 19. Qc2 {
[%emt 0:48:10]} Nc5 {[%emt 0:28:01]} 20. O-O-O {[%emt 0:07:00]} Nfe4 {[%emt 0:
01:12]} 21. Nxe4 {[%emt 0:01:33]} Bf5 {[%emt 0:06:02]} 22. Nxc5 {[%emt 0:04:45]
} Bxc2 {[%emt 0:00:18]} 23. Kxc2 {[%emt 0:00:21]} dxc5 {[%emt 0:02:34]} 24.
Rdf1 {[%emt 0:11:07]} Qd6 {[%emt 0:18:44]} 25. Nf4 {[%emt 0:01:01]} Qb6 {
[%emt 0:05:34]} 26. Bc1 {[%emt 0:02:31]} Rf8 {[%emt 0:01:53]} 27. Rxg3 {
[%emt 0:00:25]} Rae8 {[%emt 0:00:12]} 28. Bd3 {[%emt 0:03:49]} Rxf4 {[%emt 0:
00:43]} 29. Rxf4 {[%emt 0:00:05]} Rf8 {[%emt 0:00:50]} 30. Bf5 {[%emt 0:02:17]}
Kh8 {[%emt 0:00:28]} 31. b3 {[%emt 0:00:24]} Be5 {[%emt 0:00:44]} 32. Be6 {
[%emt 0:01:00]} Rxf4 {[%emt 0:00:36]} 33. exf4 {[%emt 0:00:16]} Bg7 {[%emt 0:
00:14]} 34. Rg6 {[%emt 0:01:21]} Qb4 {[%emt 0:00:19]} 35. Rxg7 {[%emt 0:02:00]}
Kxg7 {[%emt 0:00:05]} 36. Bb2+ {[%emt 0:00:28]} Kf8 {[%emt 0:00:19]} 37. Be5 {
[%emt 0:00:24]} Qe1 {[%emt 0:00:45]} 38. Bxc7 {[%emt 0:00:08]} Qe2+ {[%emt 0:
00:44]} 39. Kb1 {[%emt 0:00:16]} Qd1+ {[%emt 0:00:45]} 40. Kb2 {[%emt 0:00:05]}
Qd2+ {[%emt 0:00:20]} 41. Kb1 {[%emt 0:31:19]} Qd1+ {[%emt 0:11:34]} 42. Kb2 {
[%emt 0:00:00]} Qd2+ {[%emt 0:00:03]} 43. Kb1 {[%emt 0:00:00]} a4 {[%emt 0:09:
18]} 44. Bd6+ {[%emt 0:00:00]} Ke8 {[%emt 0:00:04]} 45. Bxc5 {[%emt 0:00:00]}
Qc3 {[%emt 0:01:51]} 46. bxa4 {[%emt 0:00:00]} Qxc4 {[%emt 0:03:19]} 1/2-1/2

[Event "XI Continental-ch America 2016"]
[Site "San Salvador"]
[Date "2016.06.03"]
[Round "9"]
[White "Kovalyov, Anton"]
[Black "Bruzon Batista, Lazaro"]
[Result "1/2-1/2"]
[ECO "A28"]
[WhiteElo "2602"]
[BlackElo "2681"]
[PlyCount "51"]
[EventDate "2016.??.??"]
[EventCountry "ESA"]
[TimeControl "40/5400+30:1800+30"]
[WhiteClock "0:48:00"]
[BlackClock "0:09:03"]

1. c4 {[%emt 0:00:00]} e5 {[%emt 0:00:00]} 2. Nc3 {[%emt 0:00:00]} Nf6 {
[%emt 0:00:05]} 3. Nf3 {[%emt 0:00:00]} Nc6 {[%emt 0:00:05]} 4. e3 {[%emt 0:00:
14]} Bb4 {[%emt 0:00:28]} 5. Qc2 {[%emt 0:00:13]} d6 {[%emt 0:03:53]} 6. a3 {
[%emt 0:03:20]} Bxc3 {[%emt 0:00:34]} 7. Qxc3 {[%emt 0:00:06]} O-O {[%emt 0:00:
31]} 8. b4 {[%emt 0:06:58]} Re8 {[%emt 0:09:46]} 9. b5 {[%emt 0:01:48]} Nb8 {
[%emt 0:02:53]} 10. Be2 {[%emt 0:03:08]} Bg4 {[%emt 0:18:49]} 11. h3 {[%emt 0:
04:00]} Bh5 {[%emt 0:00:03]} 12. O-O {[%emt 0:00:42]} Nbd7 {[%emt 0:01:18]} 13.
d3 {[%emt 0:02:41]} c5 {[%emt 0:12:19]} 14. a4 {[%emt 0:06:01]} a5 {[%emt 0:08:
56]} 15. e4 {[%emt 0:01:59]} Nf8 {[%emt 0:03:22]} 16. Ra2 {[%emt 0:00:15]} Ne6
{[%emt 0:01:01]} 17. Nh2 {[%emt 0:02:08]} Bxe2 {[%emt 0:06:10]} 18. Rxe2 {
[%emt 0:00:17]} Nh5 {[%emt 0:01:30]} 19. Ra2 {[%emt 0:02:52]} Rf8 {[%emt 0:01:
13]} 20. Ng4 {[%emt 0:05:24]} Nd4 {[%emt 0:03:11]} 21. Qe1 {[%emt 0:01:55]} Qh4
{[%emt 0:11:09]} 22. f3 {[%emt 0:04:35]} Qe7 {[%emt 0:00:06]} 23. Ne3 {[%emt 0:
02:40]} Nf4 {[%emt 0:00:51]} 24. Nf5 {[%emt 0:00:58]} Nxf5 {[%emt 0:01:25]} 25.
Bxf4 {[%emt 0:01:08]} Nd4 {[%emt 0:03:49]} 26. Be3 {[%emt 0:01:38]} 1/2-1/2

[Event "XI Continental-ch America 2016"]
[Site "San Salvador"]
[Date "2016.06.03"]
[Round "9"]
[White "Mareco, Sandro"]
[Black "Kevel, Oliva"]
[Result "1/2-1/2"]
[ECO "A33"]
[WhiteElo "2625"]
[BlackElo "2500"]
[PlyCount "104"]
[EventDate "2016.??.??"]
[EventCountry "ESA"]
[TimeControl "40/5400+30:1800+30"]
[WhiteClock "0:20:42"]
[BlackClock "0:09:36"]

1. c4 {[%emt 0:00:00]} c5 {[%emt 0:00:00]} 2. Nf3 {[%emt 0:00:00]} Nc6 {
[%emt 0:00:00]} 3. d4 {[%emt 0:00:00]} cxd4 {[%emt 0:00:00]} 4. Nxd4 {[%emt 0:
00:00]} Nf6 {[%emt 0:00:10]} 5. Nc3 {[%emt 0:00:00]} e6 {[%emt 0:00:05]} 6. a3
{[%emt 0:00:00]} Bc5 {[%emt 0:00:10]} 7. Nb3 {[%emt 0:00:00]} Bb6 {[%emt 0:00:
07]} 8. c5 {[%emt 0:00:01]} Bc7 {[%emt 0:00:08]} 9. g3 {[%emt 0:00:03]} b6 {
[%emt 0:03:29]} 10. Bg2 {[%emt 0:00:04]} bxc5 {[%emt 0:00:45]} 11. Nxc5 {
[%emt 0:00:05]} O-O {[%emt 0:01:48]} 12. O-O {[%emt 0:00:18]} Be5 {[%emt 0:08:
21]} 13. Bd2 {[%emt 0:02:29]} d5 {[%emt 0:07:45]} 14. Rc1 {[%emt 0:02:19]} Rb8
{[%emt 0:18:33]} 15. Nd3 {[%emt 0:03:51]} Bxc3 {[%emt 0:05:11]} 16. Bxc3 {
[%emt 0:07:20]} Qb6 {[%emt 0:05:16]} 17. Bxf6 {[%emt 0:12:02]} gxf6 {[%emt 0:
01:05]} 18. e4 {[%emt 0:00:06]} dxe4 {[%emt 0:01:46]} 19. Qg4+ {[%emt 0:06:36]}
Kh8 {[%emt 0:00:10]} 20. Qxe4 {[%emt 0:00:38]} Nd4 {[%emt 0:05:31]} 21. Rc4 {
[%emt 0:06:50]} Nf5 {[%emt 0:08:14]} 22. Rb4 {[%emt 0:00:33]} Qd6 {[%emt 0:00:
07]} 23. Rxb8 {[%emt 0:02:10]} Qxb8 {[%emt 0:00:05]} 24. Rc1 {[%emt 0:00:07]}
Rd8 {[%emt 0:04:15]} 25. Qb4 {[%emt 0:03:35]} Ba6 {[%emt 0:04:26]} 26. Qxb8 {
[%emt 0:02:33]} Rxb8 {[%emt 0:00:04]} 27. Nc5 {[%emt 0:00:07]} Bb5 {[%emt 0:01:
22]} 28. Nb7 {[%emt 0:02:40]} Ba6 {[%emt 0:01:23]} 29. Rc7 {[%emt 0:01:19]}
Bxb7 {[%emt 0:00:07]} 30. Rxb7 {[%emt 0:01:48]} Rxb7 {[%emt 0:00:04]} 31. Bxb7
{[%emt 0:00:05]} Nd6 {[%emt 0:00:16]} 32. Ba6 {[%emt 0:00:04]} Kg7 {[%emt 0:00:
08]} 33. f3 {[%emt 0:00:11]} Kf8 {[%emt 0:03:20]} 34. Kf2 {[%emt 0:00:51]} Ke7
{[%emt 0:00:06]} 35. Ke3 {[%emt 0:06:45]} e5 {[%emt 0:00:56]} 36. b4 {[%emt 0:
05:45]} Ke6 {[%emt 0:00:19]} 37. a4 {[%emt 0:01:01]} Kd5 {[%emt 0:00:06]} 38.
a5 {[%emt 0:00:13]} f5 {[%emt 0:01:07]} 39. Bd3 {[%emt 0:00:48]} Nc4+ {[%emt 0:
00:51]} 40. Ke2 {[%emt 0:03:06]} e4 {[%emt 0:00:28]} 41. Bc2 {[%emt 0:34:27]}
Kd4 {[%emt 0:31:24]} 42. Ba4 {[%emt 0:02:08]} Kc3 {[%emt 0:05:26]} 43. Bd7 {
[%emt 0:02:31]} exf3+ {[%emt 0:01:56]} 44. Kf2 {[%emt 0:00:04]} Kxb4 {[%emt 0:
00:43]} 45. Bxf5 {[%emt 0:00:06]} Kxa5 {[%emt 0:06:07]} 46. Bxh7 {[%emt 0:00:
45]} Ne5 {[%emt 0:00:33]} 47. Bf5 {[%emt 0:04:18]} Kb4 {[%emt 0:00:57]} 48. h4
{[%emt 0:00:29]} a5 {[%emt 0:00:04]} 49. h5 {[%emt 0:00:02]} a4 {[%emt 0:00:05]
} 50. h6 {[%emt 0:00:12]} a3 {[%emt 0:00:05]} 51. h7 {[%emt 0:03:23]} a2 52.
h8=Q a1=Q 1/2-1/2

[Event "XI Continental-ch America 2016"]
[Site "San Salvador"]
[Date "2016.06.03"]
[Round "9"]
[White "Quintiliano, Renato"]
[Black "Pichot, Alan"]
[Result "1/2-1/2"]
[ECO "A61"]
[WhiteElo "2441"]
[BlackElo "2532"]
[PlyCount "78"]
[EventDate "2016.??.??"]
[EventCountry "ESA"]
[TimeControl "40/5400+30:1800+30"]
[WhiteClock "0:10:38"]
[BlackClock "0:04:35"]

1. d4 {[%emt 0:00:00]} Nf6 {[%emt 0:00:00]} 2. c4 {[%emt 0:00:00]} c5 {[%emt 0:
00:00]} 3. d5 {[%emt 0:00:06]} e6 {[%emt 0:00:00]} 4. Nc3 {[%emt 0:00:05]} exd5
{[%emt 0:00:00]} 5. cxd5 {[%emt 0:00:04]} d6 {[%emt 0:00:03]} 6. Nf3 {[%emt 0:
01:15]} g6 {[%emt 0:00:06]} 7. e4 {[%emt 0:01:31]} Bg7 {[%emt 0:00:16]} 8. h3 {
[%emt 0:02:17]} O-O {[%emt 0:00:17]} 9. Bd3 {[%emt 0:00:15]} Re8 {[%emt 0:04:
56]} 10. O-O {[%emt 0:00:12]} Na6 {[%emt 0:00:43]} 11. Re1 {[%emt 0:05:06]} Nc7
{[%emt 0:02:29]} 12. a4 {[%emt 0:15:16]} Rb8 {[%emt 0:24:25]} 13. Bf4 {[%emt 0:
14:24]} a6 {[%emt 0:00:06]} 14. Bf1 {[%emt 0:07:09]} Nh5 {[%emt 0:22:53]} 15.
Bh2 {[%emt 0:06:44]} f5 {[%emt 0:00:27]} 16. e5 {[%emt 0:07:38]} f4 {[%emt 0:
00:41]} 17. exd6 {[%emt 0:01:00]} Qxd6 {[%emt 0:01:23]} 18. Rxe8+ {[%emt 0:03:
52]} Nxe8 {[%emt 0:00:02]} 19. Nd2 {[%emt 0:02:20]} Bd4 {[%emt 0:05:08]} 20.
Ne2 {[%emt 0:04:53]} Bg7 {[%emt 0:05:49]} 21. Nc4 {[%emt 0:02:24]} Qf6 {
[%emt 0:01:20]} 22. g4 {[%emt 0:03:21]} fxg3 {[%emt 0:08:05]} 23. fxg3 {
[%emt 0:00:05]} Bh6 {[%emt 0:02:26]} 24. a5 {[%emt 0:03:36]} Bd7 {[%emt 0:04:
25]} 25. g4 {[%emt 0:02:25]} Nf4 {[%emt 0:02:31]} 26. Ra3 {[%emt 0:00:14]} Bb5
{[%emt 0:03:31]} 27. Rf3 {[%emt 0:00:56]} g5 {[%emt 0:00:19]} 28. Nxf4 {
[%emt 0:00:17]} gxf4 {[%emt 0:00:07]} 29. Qd2 {[%emt 0:06:47]} Bxc4 {[%emt 0:
01:39]} 30. Bxc4 {[%emt 0:00:42]} Nd6 {[%emt 0:00:34]} 31. Bxf4 {[%emt 0:00:31]
} Nxc4 {[%emt 0:08:24]} 32. Bxh6 {[%emt 0:00:08]} Qxf3 {[%emt 0:01:07]} 33.
Qg5+ {[%emt 0:00:04]} Kf7 {[%emt 0:00:06]} 34. Qg7+ {[%emt 0:00:26]} Ke8 {
[%emt 0:00:05]} 35. Qg8+ {[%emt 0:00:10]} Kd7 {[%emt 0:00:10]} 36. Qe6+ {
[%emt 0:00:16]} Kc7 {[%emt 0:00:06]} 37. Qe7+ {[%emt 0:00:34]} Kc8 {[%emt 0:00:
04]} 38. Qe6+ {[%emt 0:00:55]} Kc7 {[%emt 0:00:06]} 39. Qe7+ {[%emt 0:00:54]}
Kc8 {[%emt 0:00:06]} 1/2-1/2

[Event "XI Continental-ch America 2016"]
[Site "San Salvador"]
[Date "2016.06.03"]
[Round "9"]
[White "Ortiz Suarez, Isan Reynaldo"]
[Black "Barrientos, Sergio"]
[Result "0-1"]
[ECO "A05"]
[WhiteElo "2578"]
[BlackElo "2466"]
[PlyCount "74"]
[EventDate "2016.??.??"]
[EventCountry "ESA"]
[TimeControl "40/5400+30:1800+30"]
[WhiteClock "0:01:41"]
[BlackClock "0:23:37"]

1. Nf3 {[%emt 0:00:00]} Nf6 {[%emt 0:00:57]} 2. g3 {[%emt 0:00:00]} e6 {
[%emt 0:02:05]} 3. Bg2 {[%emt 0:00:10]} d5 {[%emt 0:00:05]} 4. O-O {[%emt 0:00:
38]} Be7 {[%emt 0:00:19]} 5. c4 {[%emt 0:00:30]} O-O {[%emt 0:00:21]} 6. b3 {
[%emt 0:02:57]} c5 {[%emt 0:00:08]} 7. Bb2 {[%emt 0:00:10]} d4 {[%emt 0:00:32]}
8. e3 {[%emt 0:00:09]} Nc6 {[%emt 0:00:05]} 9. exd4 {[%emt 0:00:09]} cxd4 {
[%emt 0:00:06]} 10. d3 {[%emt 0:00:35]} Re8 {[%emt 0:02:02]} 11. a3 {[%emt 0:
01:53]} a5 {[%emt 0:01:15]} 12. Nbd2 {[%emt 0:00:33]} Bc5 {[%emt 0:03:35]} 13.
Re1 {[%emt 0:03:10]} h6 {[%emt 0:08:15]} 14. Ne5 {[%emt 0:10:51]} Nxe5 {
[%emt 0:03:11]} 15. Rxe5 {[%emt 0:00:06]} Qd6 {[%emt 0:00:27]} 16. f4 {[%emt 0:
02:47]} Rb8 {[%emt 0:01:50]} 17. h3 {[%emt 0:24:26]} Bd7 {[%emt 0:07:34]} 18.
Kh2 {[%emt 0:04:00]} Bc6 {[%emt 0:02:18]} 19. Qf1 {[%emt 0:01:36]} Nd7 {
[%emt 0:08:40]} 20. Re2 {[%emt 0:03:04]} b5 {[%emt 0:02:58]} 21. Bxc6 {[%emt 0:
15:16]} Qxc6 {[%emt 0:00:03]} 22. Rc1 {[%emt 0:00:24]} bxc4 {[%emt 0:06:09]}
23. Rxc4 {[%emt 0:01:32]} e5 {[%emt 0:00:51]} 24. Qe1 {[%emt 0:07:10]} Qd5 {
[%emt 0:02:52]} 25. f5 {[%emt 0:09:52]} Nf6 {[%emt 0:04:20]} 26. Ne4 {[%emt 0:
02:53]} Nxe4 {[%emt 0:05:46]} 27. dxe4 {[%emt 0:00:18]} Qd6 {[%emt 0:00:08]}
28. Qxa5 {[%emt 0:03:13]} d3 {[%emt 0:00:28]} 29. Rg2 {[%emt 0:00:28]} Be3 {
[%emt 0:00:46]} 30. Bc3 {[%emt 0:00:38]} Rxb3 {[%emt 0:01:49]} 31. Qa4 {
[%emt 0:01:31]} Qb8 {[%emt 0:05:16]} 32. Bb4 {[%emt 0:00:39]} Rb1 {[%emt 0:00:
21]} 33. Qa5 {[%emt 0:01:34]} Rc8 {[%emt 0:04:11]} 34. Rxc8+ {[%emt 0:01:36]}
Qxc8 {[%emt 0:00:10]} 35. Bd2 {[%emt 0:00:04]} Bd4 {[%emt 0:03:12]} 36. Qa4 {
[%emt 0:01:24]} Kh7 {[%emt 0:00:33]} 37. f6 {[%emt 0:00:33]} Rh1+ {[%emt 0:01:
15]} 0-1

[Event "XI Continental-ch America 2016"]
[Site "San Salvador"]
[Date "2016.06.04"]
[Round "10"]
[White "Pichot, Alan"]
[Black "Sanchez Alvarez, Roberto Carlos"]
[Result "1-0"]
[ECO "B90"]
[WhiteElo "2532"]
[BlackElo "2397"]
[Annotator "ChessBase"]
[PlyCount "63"]
[EventDate "2016.??.??"]
[EventCountry "ESA"]
[Source "ChessBase"]
[TimeControl "40/5400+30:1800+30"]

1. e4 {[%emt 0:00:00]} c5 {[%emt 0:00:45]} 2. Nf3 {[%emt 0:00:00]} d6 {[%emt 0:
00:10]} 3. d4 {[%emt 0:00:00]} cxd4 {[%emt 0:00:08]} 4. Nxd4 {[%emt 0:00:00]}
Nf6 {[%emt 0:00:09]} 5. Nc3 {[%emt 0:00:04]} a6 {[%emt 0:00:02]} 6. Qf3 {
[%emt 0:00:09]} Nbd7 {[%emt 0:00:08]} 7. Be2 {[%emt 0:00:30]} e6 {[%emt 0:02:
01]} 8. Be3 {[%emt 0:00:49]} Qc7 {[%emt 0:01:24]} 9. g4 {[%emt 0:05:40]} h6 {
[%emt 0:04:23]} 10. Qh3 {[%emt 0:04:46]} Nc5 {[%emt 0:07:33]} 11. f3 {[%emt 0:
01:46]} b5 {[%emt 0:03:59]} 12. g5 {[%emt 0:07:21]} b4 {[%emt 0:00:51]} 13.
gxf6 {[%emt 0:01:13]} bxc3 {[%emt 0:00:07]} 14. b4 {[%emt 0:02:37]} e5 {
[%emt 0:06:26]} 15. Qg3 {[%emt 0:07:05]} Ne6 {[%emt 0:00:48]} 16. Nxe6 {
[%emt 0:02:06]} fxe6 {[%emt 0:00:08]} 17. f4 {[%emt 0:01:56]} gxf6 {[%emt 0:33:
55]} 18. fxe5 {[%emt 0:03:48]} dxe5 {[%emt 0:00:22]} 19. Rd1 {[%emt 0:00:59]}
Qf7 {[%emt 0:05:33]} 20. Bb6 {[%emt 0:05:30]} Be7 {[%emt 0:05:55]} 21. Rg1 {
[%emt 0:05:24]} Bb7 {[%emt 0:04:01]} 22. Qh3 {[%emt 0:18:02]} h5 {[%emt 0:00:
41]} 23. Qd3 {[%emt 0:10:31]} f5 {[%emt 0:02:58]} 24. exf5 {[%emt 0:08:32]}
Bh4+ {[%emt 0:04:17]} 25. Rg3 {[%emt 0:00:06]} exf5 {[%emt 0:10:58]} 26. Qxc3 {
[%emt 0:00:29]} Qg7 {[%emt 0:02:28]} 27. Qb3 {[%emt 0:06:37]} Rh6 {[%emt 0:00:
37]} 28. Bc5 {[%emt 0:01:22]} Bc8 {[%emt 0:01:33]} 29. Qd5 {[%emt 0:01:11]} Rb8
{[%emt 0:01:34]} 30. Kf1 {[%emt 0:03:36]} Bxg3 {[%emt 0:00:29]} 31. Qd8+ {
[%emt 0:00:08]} Kf7 {[%emt 0:00:01]} 32. hxg3 {Kf8 Bxf8} 1-0